[Event "Titled Tuesday Blitz January 10 Early 2023"]
[White "Sanal, Vahap"]
[Black "Zemlyanskii, Ivan"]
[WhiteFideId "6300545"]
[BlackFideId "24249971"]
[WhiteElo "2600"]
[BlackElo "2300"]
[Result "0-1"]
[Round "10"]
[TimeControl "180+2"]
[Date "2023.01.10"]
[WhiteClock "0:01:13"]
[BlackClock "0:00:24"]

1. Nf3 {[%clk 0:02:56]}  d5 {[%clk 0:03:00]} 2. c4 {[%clk 0:02:55]}  e6 {[%clk 0:03:00]} 3. g3 {[%clk 0:02:55]}  Nf6 {[%clk 0:03:00]} 4. Bg2 {[%clk 0:02:55]}  d4 {[%clk 0:02:59]} 5. O-O {[%clk 0:02:55]}  c5 {[%clk 0:02:59]} 6. d3 {[%clk 0:02:55]}  Nc6 {[%clk 0:03:00]} 7. e3 {[%clk 0:02:56]}  h6 {[%clk 0:02:57]} 8. exd4 {[%clk 0:02:55]}  cxd4 {[%clk 0:02:58]} 9. Re1 {[%clk 0:02:54]}  Bd6 {[%clk 0:02:57]} 10. Na3 {[%clk 0:02:52]}  O-O {[%clk 0:02:56]} 11. Nc2 {[%clk 0:02:51]}  Re8 {[%clk 0:02:50]} 12. Rb1 {[%clk 0:02:45]}  a5 {[%clk 0:02:49]} 13. a3 {[%clk 0:02:44]}  e5 {[%clk 0:02:44]} 14. b4 {[%clk 0:02:43]}  axb4 {[%clk 0:02:45]} 15. axb4 {[%clk 0:02:43]}  Bf5 {[%clk 0:02:44]} 16. b5 {[%clk 0:02:23]}  Na5 {[%clk 0:02:44]} 17. Bd2 {[%clk 0:02:23]}  Bxd3 {[%clk 0:02:30]} 18. Bxa5 {[%clk 0:02:16]}  Bxc2 {[%clk 0:02:30]} 19. Bxd8 {[%clk 0:02:12]}  Bxd1 {[%clk 0:02:29]} 20. Bxf6 {[%clk 0:02:12]}  Bxf3 {[%clk 0:02:29]} 21. Bxf3 {[%clk 0:02:08]}  gxf6 {[%clk 0:02:29]} 22. Bxb7 {[%clk 0:02:09]}  Ra2 {[%clk 0:02:24]} 23. Be4 {[%clk 0:01:57]}  Bc5 {[%clk 0:02:22]} 24. Ra1 {[%clk 0:01:55]}  Rb2 {[%clk 0:02:17]} 25. Reb1 {[%clk 0:01:54]}  Rd2 {[%clk 0:02:16]} 26. Rd1 {[%clk 0:01:48]}  Re2 {[%clk 0:02:08]} 27. Re1 {[%clk 0:01:37]}  Rd2 {[%clk 0:02:08]} 28. Rad1 {[%clk 0:01:31]}  Rb2 {[%clk 0:02:05]} 29. Kf1 {[%clk 0:01:27]}  d3 {[%clk 0:01:43]} 30. Kg2 {[%clk 0:01:27]}  Rxf2+ {[%clk 0:01:29]} 31. Kh3 {[%clk 0:01:28]}  d2 {[%clk 0:01:29]} 32. Rf1 {[%clk 0:01:24]}  Rxf1 {[%clk 0:01:13]} 33. Rxf1 {[%clk 0:01:25]}  Rd8 {[%clk 0:01:12]} 34. Rd1 {[%clk 0:01:24]}  Rd4 {[%clk 0:01:00]} 35. Bd5 {[%clk 0:01:24]}  e4 {[%clk 0:00:56]} 36. Kg2 {[%clk 0:01:24]}  f5 {[%clk 0:00:54]} 37. Kf1 {[%clk 0:01:24]}  f4 {[%clk 0:00:48]} 38. gxf4 {[%clk 0:01:20]}  e3 {[%clk 0:00:48]} 39. Ke2 {[%clk 0:01:19]}  Rxf4 {[%clk 0:00:49]} 40. Rb1 {[%clk 0:01:06]}  Rf2+ {[%clk 0:00:45]} 41. Kd3 {[%clk 0:01:07]}  e2 {[%clk 0:00:23]} 42. Kxd2 {[%clk 0:01:08]}  Rf1 {[%clk 0:00:23]} 43. Re1 {[%clk 0:01:08]}  Bb4+ {[%clk 0:00:20]} 44. Kxe2 {[%clk 0:01:09]}  Rxe1+ {[%clk 0:00:21]} 45. Kf2 {[%clk 0:01:10]}  Rb1 {[%clk 0:00:20]} 46. Kf3 {[%clk 0:01:10]}  Bc5 {[%clk 0:00:20]} 47. h4 {[%clk 0:01:11]}  Kf8 {[%clk 0:00:20]} 48. Ke4 {[%clk 0:01:11]}  Ke7 {[%clk 0:00:21]} 49. Bc6 {[%clk 0:01:12]}  Rd1 {[%clk 0:00:21]} 50. Bd5 {[%clk 0:01:11]}  f6 {[%clk 0:00:20]} 51. h5 {[%clk 0:01:11]}  Rg1 {[%clk 0:00:20]} 52. Bc6 {[%clk 0:01:09]}  Rg5 {[%clk 0:00:20]} 53. Kd3 {[%clk 0:01:08]}  Rxh5 {[%clk 0:00:20]} 54. Bg2 {[%clk 0:01:09]}  Kd6 {[%clk 0:00:20]} 55. Ke4 {[%clk 0:01:09]}  Rg5 {[%clk 0:00:21]} 56. Bf3 {[%clk 0:01:09]}  h5 {[%clk 0:00:22]} 57. Be2 {[%clk 0:01:09]}  h4 {[%clk 0:00:22]} 58. Bf1 {[%clk 0:01:09]}  Rg1 {[%clk 0:00:19]} 59. Bh3 {[%clk 0:01:09]}  Rg3 {[%clk 0:00:19]} 60. Bc8 {[%clk 0:01:09]}  h3 {[%clk 0:00:19]} 61. Kf4 {[%clk 0:01:09]}  h2 {[%clk 0:00:19]} 62. Bb7 {[%clk 0:01:09]}  Rg1 {[%clk 0:00:20]} 63. Kf5 {[%clk 0:01:09]}  h1=Q {[%clk 0:00:20]} 64. Bxh1 {[%clk 0:01:09]}  Rxh1 {[%clk 0:00:21]} 65. Kxf6 {[%clk 0:01:10]}  Rc1 {[%clk 0:00:21]} 66. Kf7 {[%clk 0:01:10]}  Rxc4 {[%clk 0:00:22]} 67. Ke8 {[%clk 0:01:11]}  Rb4 {[%clk 0:00:22]} 68. Kd8 {[%clk 0:01:12]}  Rxb5 {[%clk 0:00:23]} 69. Kc8 {[%clk 0:01:13]}  Rb6 {[%clk 0:00:23]} 70. Kd8 {[%clk 0:01:13]}  Rb8# {[%clk 0:00:24]} 0-1


[Site "https://www.chess.com"]

[Event "Titled Tuesday Blitz January 10 Early 2023"]
[White "Ibadov, Dashgyn"]
[Black "Baskakov, Egor"]
[WhiteFideId "24107514"]
[BlackFideId "24197866"]
[WhiteElo "2391"]
[BlackElo "2215"]
[Result "0-1"]
[Round "10"]
[TimeControl "180+2"]
[Date "2023.01.10"]
[WhiteClock "0:00:01"]
[BlackClock "0:00:57"]

1. d4 {[%clk 0:03:00]}  Nf6 {[%clk 0:02:59]} 2. c4 {[%clk 0:03:00]}  e6 {[%clk 0:03:00]} 3. Nf3 {[%clk 0:02:59]}  d5 {[%clk 0:03:01]} 4. Nc3 {[%clk 0:02:57]}  Ne4 {[%clk 0:03:01]} 5. Bf4 {[%clk 0:02:38]}  c6 {[%clk 0:02:57]} 6. e3 {[%clk 0:02:37]}  f5 {[%clk 0:02:57]} 7. Qc2 {[%clk 0:02:32]}  Be7 {[%clk 0:02:56]} 8. g4 {[%clk 0:02:25]}  O-O {[%clk 0:02:56]} 9. gxf5 {[%clk 0:02:07]}  exf5 {[%clk 0:02:57]} 10. O-O-O {[%clk 0:02:02]}  Be6 {[%clk 0:02:56]} 11. Ne5 {[%clk 0:01:59]}  Nd7 {[%clk 0:02:55]} 12. f3 {[%clk 0:01:59]}  Nxc3 {[%clk 0:02:55]} 13. Qxc3 {[%clk 0:01:59]}  Nxe5 {[%clk 0:02:55]} 14. Bxe5 {[%clk 0:01:58]}  Bd6 {[%clk 0:02:55]} 15. f4 {[%clk 0:01:52]}  Rc8 {[%clk 0:02:49]} 16. Bxd6 {[%clk 0:01:49]}  Qxd6 {[%clk 0:02:49]} 17. c5 {[%clk 0:01:49]}  Qe7 {[%clk 0:02:46]} 18. Rg1 {[%clk 0:01:50]}  b6 {[%clk 0:02:41]} 19. Rg3 {[%clk 0:01:47]}  Kh8 {[%clk 0:02:35]} 20. Ba6 {[%clk 0:01:41]}  Rc7 {[%clk 0:02:31]} 21. Rdg1 {[%clk 0:01:39]}  g6 {[%clk 0:02:30]} 22. Be2 {[%clk 0:01:26]}  Bf7 {[%clk 0:02:25]} 23. Rh1 {[%clk 0:01:05]}  Qh4 {[%clk 0:02:20]} 24. Bf3 {[%clk 0:00:58]}  Re8 {[%clk 0:02:17]} 25. Kb1 {[%clk 0:00:44]}  b5 {[%clk 0:02:03]} 26. Bg2 {[%clk 0:00:21]}  Rce7 {[%clk 0:01:59]} 27. a3 {[%clk 0:00:16]}  Kg7 {[%clk 0:01:55]} 28. Ka2 {[%clk 0:00:16]}  a5 {[%clk 0:01:48]} 29. Qxa5 {[%clk 0:00:11]}  Rxe3 {[%clk 0:01:48]} 30. Qc7 {[%clk 0:00:09]}  Qf6 {[%clk 0:01:45]} 31. Rxe3 {[%clk 0:00:05]}  Rxe3 {[%clk 0:01:46]} 32. h4 {[%clk 0:00:04]}  Qxd4 {[%clk 0:01:40]} 33. h5 {[%clk 0:00:04]}  Re2 {[%clk 0:01:09]} 34. h6+ {[%clk 0:00:05]}  Kg8 {[%clk 0:01:09]} 35. Qc8+ {[%clk 0:00:05]}  Be8 {[%clk 0:01:09]} 36. Rb1 {[%clk 0:00:05]}  Qxc5 {[%clk 0:01:01]} 37. Bf1 {[%clk 0:00:03]}  Re7 {[%clk 0:00:59]} 38. Bd3 {[%clk 0:00:02]}  Qd6 {[%clk 0:00:58]} 39. Ka1 {[%clk 0:00:02]}  b4 {[%clk 0:00:57]} 40. a4 {[%clk 0:00:01]}  b3 {[%clk 0:00:57]} 0-1


[Site "https://www.chess.com"]

[Event "Titled Tuesday Blitz January 10 Early 2023"]
[White "Kamsky, Gata"]
[Black "Seo, Jung Min"]
[WhiteFideId "2000024"]
[BlackFideId "1734687"]
[WhiteElo "2665"]
[BlackElo "2494"]
[Result "1-0"]
[Round "10"]
[TimeControl "180+2"]
[Date "2023.01.10"]
[WhiteClock "0:01:39"]
[BlackClock "0:01:46"]

1. d4 {[%clk 0:03:00]}  Nf6 {[%clk 0:02:59]} 2. Nf3 {[%clk 0:02:59]}  b6 {[%clk 0:02:58]} 3. Bg5 {[%clk 0:02:56]}  Bb7 {[%clk 0:02:57]} 4. Nbd2 {[%clk 0:02:55]}  e6 {[%clk 0:02:58]} 5. e3 {[%clk 0:02:54]}  Be7 {[%clk 0:02:58]} 6. a4 {[%clk 0:02:52]}  Ne4 {[%clk 0:02:57]} 7. Bxe7 {[%clk 0:02:50]}  Qxe7 {[%clk 0:02:57]} 8. Bd3 {[%clk 0:02:47]}  Nxd2 {[%clk 0:02:57]} 9. Qxd2 {[%clk 0:02:46]}  d6 {[%clk 0:02:57]} 10. e4 {[%clk 0:02:45]}  a5 {[%clk 0:02:55]} 11. O-O {[%clk 0:02:45]}  O-O {[%clk 0:02:54]} 12. c3 {[%clk 0:02:44]}  Nd7 {[%clk 0:02:55]} 13. Rae1 {[%clk 0:02:42]}  Rfd8 {[%clk 0:02:53]} 14. Ng5 {[%clk 0:02:37]}  h6 {[%clk 0:02:49]} 15. Nh3 {[%clk 0:02:37]}  Ba6 {[%clk 0:02:49]} 16. Bxa6 {[%clk 0:02:35]}  Rxa6 {[%clk 0:02:49]} 17. f4 {[%clk 0:02:34]}  Raa8 {[%clk 0:02:48]} 18. f5 {[%clk 0:02:17]}  c5 {[%clk 0:02:47]} 19. Nf4 {[%clk 0:02:06]}  cxd4 {[%clk 0:02:39]} 20. fxe6 {[%clk 0:02:02]}  fxe6 {[%clk 0:02:30]} 21. cxd4 {[%clk 0:02:01]}  Nf6 {[%clk 0:02:30]} 22. Qd3 {[%clk 0:01:59]}  e5 {[%clk 0:02:28]} 23. Qb3+ {[%clk 0:01:57]}  Qf7 {[%clk 0:02:10]} 24. Nd5 {[%clk 0:01:57]}  exd4 {[%clk 0:02:07]} 25. Nxf6+ {[%clk 0:01:56]}  gxf6 {[%clk 0:02:07]} 26. Qxb6 {[%clk 0:01:54]}  d3 {[%clk 0:01:59]} 27. Re3 {[%clk 0:01:49]}  d2 {[%clk 0:01:56]} 28. Qd4 {[%clk 0:01:47]}  Rf8 {[%clk 0:01:55]} 29. Qxd2 {[%clk 0:01:45]}  Kh7 {[%clk 0:01:55]} 30. Rh3 {[%clk 0:01:43]}  Qg6 {[%clk 0:01:55]} 31. Qxd6 {[%clk 0:01:43]}  Qxe4 {[%clk 0:01:50]} 32. Qd7+ {[%clk 0:01:39]}  Kg8 {[%clk 0:01:46]} 33. Rg3+ {[%clk 0:01:39]} 1-0


[Site "https://www.chess.com"]

[Event "Titled Tuesday Blitz January 10 Early 2023"]
[White "Domingo Nunez, Ruben"]
[Black "Urazayev, Arystanbek"]
[WhiteFideId "22245570"]
[BlackFideId "13709810"]
[WhiteElo "2416"]
[BlackElo "2460"]
[Result "0-1"]
[Round "10"]
[TimeControl "180+2"]
[Date "2023.01.10"]
[WhiteClock "0:01:04"]
[BlackClock "0:01:36"]

1. e4 {[%clk 0:03:00]}  e6 {[%clk 0:03:00]} 2. Nf3 {[%clk 0:03:01]}  d5 {[%clk 0:03:01]} 3. Nc3 {[%clk 0:03:02]}  Nf6 {[%clk 0:03:00]} 4. e5 {[%clk 0:03:02]}  Nfd7 {[%clk 0:03:01]} 5. d4 {[%clk 0:03:02]}  c5 {[%clk 0:03:01]} 6. dxc5 {[%clk 0:03:03]}  Bxc5 {[%clk 0:03:01]} 7. Bd3 {[%clk 0:03:03]}  Nc6 {[%clk 0:03:01]} 8. Bf4 {[%clk 0:03:04]}  h6 {[%clk 0:03:00]} 9. h4 {[%clk 0:03:03]}  a6 {[%clk 0:02:53]} 10. a3 {[%clk 0:03:03]}  Qc7 {[%clk 0:02:54]} 11. Qe2 {[%clk 0:03:03]}  Nd4 {[%clk 0:02:50]} 12. Nxd4 {[%clk 0:03:03]}  Bxd4 {[%clk 0:02:51]} 13. Kf1 {[%clk 0:02:59]}  Bxe5 {[%clk 0:02:48]} 14. Nxd5 {[%clk 0:02:56]}  exd5 {[%clk 0:02:45]} 15. Bxe5 {[%clk 0:02:57]}  Qxe5 {[%clk 0:02:43]} 16. Qxe5+ {[%clk 0:02:57]}  Nxe5 {[%clk 0:02:44]} 17. Re1 {[%clk 0:02:58]}  f6 {[%clk 0:02:44]} 18. f4 {[%clk 0:02:58]}  O-O {[%clk 0:02:45]} 19. fxe5 {[%clk 0:02:59]}  fxe5+ {[%clk 0:02:46]} 20. Kg1 {[%clk 0:02:58]}  e4 {[%clk 0:02:46]} 21. Bf1 {[%clk 0:02:59]}  b5 {[%clk 0:02:45]} 22. Rd1 {[%clk 0:02:59]}  Bb7 {[%clk 0:02:45]} 23. a4 {[%clk 0:02:59]}  bxa4 {[%clk 0:02:39]} 24. Rh3 {[%clk 0:02:59]}  Rad8 {[%clk 0:02:35]} 25. Ra3 {[%clk 0:02:58]}  Bc6 {[%clk 0:02:32]} 26. Bxa6 {[%clk 0:02:56]}  d4 {[%clk 0:02:29]} 27. b3 {[%clk 0:02:47]}  e3 {[%clk 0:02:29]} 28. Bf1 {[%clk 0:02:09]}  Rf2 {[%clk 0:02:26]} 29. Re1 {[%clk 0:02:00]}  Rxc2 {[%clk 0:02:24]} 30. bxa4 {[%clk 0:02:01]}  Be4 {[%clk 0:02:12]} 31. Raa1 {[%clk 0:01:34]}  Rd6 {[%clk 0:02:01]} 32. a5 {[%clk 0:01:28]}  Bxg2 {[%clk 0:02:00]} 33. a6 {[%clk 0:01:25]}  Rg6 {[%clk 0:01:48]} 34. Be2 {[%clk 0:01:20]}  Be4+ {[%clk 0:01:39]} 35. Kf1 {[%clk 0:01:08]}  d3 {[%clk 0:01:38]} 36. a7 {[%clk 0:01:04]}  Bg2+ {[%clk 0:01:36]} 37. Kg1 {[%clk 0:01:04]}  Ba8+ {[%clk 0:01:36]} 0-1


[Site "https://www.chess.com"]

[Event "Titled Tuesday Blitz January 10 Early 2023"]
[White "Skvortsov, Andrei"]
[Black "Stribuk, Artiom"]
[WhiteFideId "24108600"]
[BlackFideId "13515659"]
[WhiteElo "2313"]
[BlackElo "2378"]
[Result "1/2-1/2"]
[Round "10"]
[TimeControl "180+2"]
[Date "2023.01.10"]
[WhiteClock "0:00:10"]
[BlackClock "0:00:07"]

1. e4 {[%clk 0:03:00]}  c5 {[%clk 0:03:00]} 2. d4 {[%clk 0:03:00]}  cxd4 {[%clk 0:03:00]} 3. Qxd4 {[%clk 0:03:00]}  Nc6 {[%clk 0:02:59]} 4. Qd3 {[%clk 0:03:01]}  Nf6 {[%clk 0:02:55]} 5. Nc3 {[%clk 0:03:01]}  g6 {[%clk 0:02:49]} 6. Nf3 {[%clk 0:03:00]}  Bg7 {[%clk 0:02:49]} 7. Be2 {[%clk 0:03:01]}  O-O {[%clk 0:02:50]} 8. O-O {[%clk 0:03:01]}  d6 {[%clk 0:02:50]} 9. Nd5 {[%clk 0:03:02]}  Bg4 {[%clk 0:02:42]} 10. c3 {[%clk 0:03:01]}  e6 {[%clk 0:02:31]} 11. Nxf6+ {[%clk 0:03:00]}  Bxf6 {[%clk 0:02:32]} 12. Bf4 {[%clk 0:02:55]}  Bxf3 {[%clk 0:02:27]} 13. Qxf3 {[%clk 0:02:51]}  Be5 {[%clk 0:02:22]} 14. Bh6 {[%clk 0:02:50]}  Bg7 {[%clk 0:02:22]} 15. Bf4 {[%clk 0:02:50]}  Qe7 {[%clk 0:02:22]} 16. Rfd1 {[%clk 0:02:46]}  Rfd8 {[%clk 0:02:22]} 17. Qg3 {[%clk 0:02:42]}  Be5 {[%clk 0:02:21]} 18. Bxe5 {[%clk 0:02:37]}  Nxe5 {[%clk 0:02:21]} 19. f4 {[%clk 0:02:38]}  Nd7 {[%clk 0:02:18]} 20. f5 {[%clk 0:02:20]}  Ne5 {[%clk 0:02:16]} 21. Qe3 {[%clk 0:02:11]}  Kg7 {[%clk 0:01:52]} 22. Rf1 {[%clk 0:02:06]}  f6 {[%clk 0:01:53]} 23. fxe6 {[%clk 0:02:03]}  Qxe6 {[%clk 0:01:53]} 24. Rad1 {[%clk 0:02:03]}  b6 {[%clk 0:01:51]} 25. Rd5 {[%clk 0:02:02]}  Rac8 {[%clk 0:01:49]} 26. b3 {[%clk 0:01:53]}  Rc5 {[%clk 0:01:49]} 27. Rd4 {[%clk 0:01:45]}  Qe7 {[%clk 0:01:48]} 28. Rfd1 {[%clk 0:01:40]}  Nc6 {[%clk 0:01:45]} 29. R4d2 {[%clk 0:01:39]}  Re5 {[%clk 0:01:45]} 30. Qf2 {[%clk 0:01:31]}  Nb8 {[%clk 0:01:08]} 31. Bf3 {[%clk 0:01:28]}  Na6 {[%clk 0:01:08]} 32. Rd5 {[%clk 0:01:26]}  Nc5 {[%clk 0:01:06]} 33. Qd4 {[%clk 0:01:17]}  Ne6 {[%clk 0:00:54]} 34. Qd2 {[%clk 0:01:03]}  Rxd5 {[%clk 0:00:42]} 35. exd5 {[%clk 0:01:02]}  Ng5 {[%clk 0:00:41]} 36. Re1 {[%clk 0:00:58]}  Qd7 {[%clk 0:00:36]} 37. h4 {[%clk 0:00:45]}  Nxf3+ {[%clk 0:00:27]} 38. gxf3 {[%clk 0:00:46]}  Re8 {[%clk 0:00:27]} 39. Rxe8 {[%clk 0:00:43]}  Qxe8 {[%clk 0:00:28]} 40. c4 {[%clk 0:00:23]}  Qe5 {[%clk 0:00:27]} 41. Kg2 {[%clk 0:00:21]}  h5 {[%clk 0:00:22]} 42. a4 {[%clk 0:00:20]}  g5 {[%clk 0:00:09]} 43. hxg5 {[%clk 0:00:20]}  fxg5 {[%clk 0:00:10]} 44. a5 {[%clk 0:00:19]}  h4 {[%clk 0:00:07]} 45. Qf2 {[%clk 0:00:18]}  bxa5 {[%clk 0:00:06]} 46. Qxa7+ {[%clk 0:00:17]}  Kh6 {[%clk 0:00:07]} 47. Qf2 {[%clk 0:00:14]}  Qc3 {[%clk 0:00:07]} 48. Qe2 {[%clk 0:00:12]}  Qf6 {[%clk 0:00:06]} 49. Kh3 {[%clk 0:00:08]}  Kg7 {[%clk 0:00:05]} 50. Kg4 {[%clk 0:00:08]}  Kh6 {[%clk 0:00:04]} 51. Qe3 {[%clk 0:00:05]}  Kg6 {[%clk 0:00:03]} 52. Kh3 {[%clk 0:00:04]}  Qf5+ {[%clk 0:00:03]} 53. Kg2 {[%clk 0:00:05]}  Kf6 {[%clk 0:00:03]} 54. Qc3+ {[%clk 0:00:04]}  Qe5 {[%clk 0:00:03]} 55. Qd2 {[%clk 0:00:04]}  Kf5 {[%clk 0:00:03]} 56. Qxa5 {[%clk 0:00:04]}  Qb2+ {[%clk 0:00:03]} 57. Kf1 {[%clk 0:00:04]}  Qc1+ {[%clk 0:00:03]} 58. Qe1 {[%clk 0:00:04]}  Qc2 {[%clk 0:00:02]} 59. Qe4+ {[%clk 0:00:04]}  Qxe4 {[%clk 0:00:02]} 60. fxe4+ {[%clk 0:00:05]}  Kxe4 {[%clk 0:00:03]} 61. b4 {[%clk 0:00:06]}  Kd4 {[%clk 0:00:03]} 62. b5 {[%clk 0:00:06]}  Kc5 {[%clk 0:00:04]} 63. Kg2 {[%clk 0:00:06]}  g4 {[%clk 0:00:04]} 64. Kh2 {[%clk 0:00:07]}  Kb6 {[%clk 0:00:04]} 65. Kg2 {[%clk 0:00:07]}  Ka5 {[%clk 0:00:05]} 66. Kh2 {[%clk 0:00:08]}  g3+ {[%clk 0:00:04]} 67. Kh3 {[%clk 0:00:08]}  Kb6 {[%clk 0:00:05]} 68. Kg2 {[%clk 0:00:09]}  Kc5 {[%clk 0:00:06]} 69. Kh3 {[%clk 0:00:09]}  Kb6 {[%clk 0:00:06]} 70. Kg2 {[%clk 0:00:10]}  Kc5 {[%clk 0:00:07]} 71. Kh3 {[%clk 0:00:10]}  Kb6 {[%clk 0:00:07]} 1/2-1/2


[Site "https://www.chess.com"]

[Event "Titled Tuesday Blitz January 10 Early 2023"]
[White "Putnam, Liam"]
[Black "Barrientos, Sergio E"]
[WhiteFideId "30938279"]
[BlackFideId "4401824"]
[WhiteElo "2285"]
[BlackElo "2479"]
[Result "1-0"]
[Round "10"]
[TimeControl "180+2"]
[Date "2023.01.10"]
[WhiteClock "0:00:18"]
[BlackClock "0:00:21"]

1. d4 {[%clk 0:03:00]}  Nf6 {[%clk 0:02:53]} 2. c4 {[%clk 0:02:59]}  e6 {[%clk 0:02:51]} 3. g3 {[%clk 0:02:59]}  Bb4+ {[%clk 0:02:51]} 4. Bd2 {[%clk 0:02:58]}  Qe7 {[%clk 0:02:49]} 5. Bg2 {[%clk 0:02:58]}  Nc6 {[%clk 0:02:48]} 6. Nf3 {[%clk 0:02:58]}  Ne4 {[%clk 0:02:46]} 7. O-O {[%clk 0:02:56]}  Nxd2 {[%clk 0:02:37]} 8. Nbxd2 {[%clk 0:02:57]}  e5 {[%clk 0:02:34]} 9. d5 {[%clk 0:02:35]}  Nb8 {[%clk 0:02:34]} 10. Nb1 {[%clk 0:02:06]}  a5 {[%clk 0:02:32]} 11. a3 {[%clk 0:02:04]}  Bc5 {[%clk 0:02:31]} 12. Nc3 {[%clk 0:02:04]}  O-O {[%clk 0:02:27]} 13. Ne4 {[%clk 0:01:56]}  b6 {[%clk 0:02:17]} 14. d6 {[%clk 0:01:42]}  cxd6 {[%clk 0:02:08]} 15. Nh4 {[%clk 0:01:42]}  Nc6 {[%clk 0:02:03]} 16. Nf5 {[%clk 0:01:40]}  Qe6 {[%clk 0:01:58]} 17. Nfxd6 {[%clk 0:01:36]}  Ba6 {[%clk 0:01:46]} 18. b3 {[%clk 0:01:28]}  Bd4 {[%clk 0:01:42]} 19. Rb1 {[%clk 0:01:00]}  f5 {[%clk 0:01:41]} 20. e3 {[%clk 0:00:53]}  fxe4 {[%clk 0:01:38]} 21. Nxe4 {[%clk 0:00:53]}  Rad8 {[%clk 0:01:25]} 22. exd4 {[%clk 0:00:51]}  Nxd4 {[%clk 0:01:11]} 23. Qh5 {[%clk 0:00:46]}  Rf5 {[%clk 0:00:55]} 24. Ng5 {[%clk 0:00:42]}  Qg6 {[%clk 0:00:36]} 25. Bd5+ {[%clk 0:00:41]}  Kh8 {[%clk 0:00:30]} 26. Nf7+ {[%clk 0:00:36]}  Qxf7 {[%clk 0:00:28]} 27. Bxf7 {[%clk 0:00:28]}  Rxh5 {[%clk 0:00:27]} 28. Bxh5 {[%clk 0:00:29]}  Bb7 {[%clk 0:00:24]} 29. Rfe1 {[%clk 0:00:27]}  d6 {[%clk 0:00:21]} 30. Re3 {[%clk 0:00:26]}  g6 {[%clk 0:00:22]} 31. Be2 {[%clk 0:00:25]}  Kg7 {[%clk 0:00:22]} 32. Kf1 {[%clk 0:00:22]}  Ra8 {[%clk 0:00:21]} 33. Rd1 {[%clk 0:00:19]}  g5 {[%clk 0:00:21]} 34. Rxd4 {[%clk 0:00:18]} 1-0


[Site "https://www.chess.com"]

[Event "Titled Tuesday Blitz January 10 Early 2023"]
[White "Ashraf, Artin"]
[Black "Avila Pavas, Santiago"]
[WhiteFideId "22514805"]
[BlackFideId "4437128"]
[WhiteElo "2314"]
[BlackElo "2522"]
[Result "0-1"]
[Round "10"]
[TimeControl "180+2"]
[Date "2023.01.10"]
[WhiteClock "0:00:03"]
[BlackClock "0:00:21"]

1. Nf3 {[%clk 0:02:59]}  d5 {[%clk 0:02:59]} 2. g3 {[%clk 0:03:00]}  Bg4 {[%clk 0:02:59]} 3. Ne5 {[%clk 0:02:54]}  Bf5 {[%clk 0:02:59]} 4. c4 {[%clk 0:02:53]}  f6 {[%clk 0:02:45]} 5. Nf3 {[%clk 0:02:43]}  d4 {[%clk 0:02:45]} 6. Qb3 {[%clk 0:02:34]}  Nc6 {[%clk 0:02:39]} 7. Qxb7 {[%clk 0:02:31]}  Bd7 {[%clk 0:02:39]} 8. Qb3 {[%clk 0:02:23]}  e5 {[%clk 0:02:36]} 9. d3 {[%clk 0:02:20]}  f5 {[%clk 0:02:04]} 10. Bg2 {[%clk 0:02:16]}  e4 {[%clk 0:01:58]} 11. Nfd2 {[%clk 0:01:37]}  Rb8 {[%clk 0:01:47]} 12. Qd1 {[%clk 0:01:35]}  e3 {[%clk 0:01:37]} 13. fxe3 {[%clk 0:01:30]}  dxe3 {[%clk 0:01:38]} 14. Nf1 {[%clk 0:01:28]}  Bb4+ {[%clk 0:01:37]} 15. Nc3 {[%clk 0:01:27]}  f4 {[%clk 0:01:33]} 16. h4 {[%clk 0:01:07]}  Qf6 {[%clk 0:01:24]} 17. Nxe3 {[%clk 0:00:20]}  fxe3 {[%clk 0:01:22]} 18. Bxe3 {[%clk 0:00:19]}  Bxc3+ {[%clk 0:01:00]} 19. bxc3 {[%clk 0:00:20]}  Qxc3+ {[%clk 0:01:01]} 20. Bd2 {[%clk 0:00:21]}  Qd4 {[%clk 0:01:01]} 21. Rb1 {[%clk 0:00:18]}  Rxb1 {[%clk 0:00:59]} 22. Qxb1 {[%clk 0:00:19]}  Nf6 {[%clk 0:00:56]} 23. Bxc6 {[%clk 0:00:08]}  Bxc6 {[%clk 0:00:57]} 24. Qb8+ {[%clk 0:00:08]}  Kf7 {[%clk 0:00:34]} 25. Qxc7+ {[%clk 0:00:08]}  Bd7 {[%clk 0:00:34]} 26. Qf4 {[%clk 0:00:07]}  Qa1+ {[%clk 0:00:28]} 27. Bc1 {[%clk 0:00:06]}  Qxa2 {[%clk 0:00:27]} 28. O-O {[%clk 0:00:04]}  Qxe2 {[%clk 0:00:27]} 29. Qd6 {[%clk 0:00:04]}  Bh3 {[%clk 0:00:20]} 30. Rf2 {[%clk 0:00:01]}  Qe1+ {[%clk 0:00:20]} 31. Kh2 {[%clk 0:00:02]}  Qxf2+ {[%clk 0:00:20]} 32. Kxh3 {[%clk 0:00:03]}  Qf1+ {[%clk 0:00:20]} 33. Kh2 {[%clk 0:00:03]}  Ng4# {[%clk 0:00:21]} 0-1


[Site "https://www.chess.com"]

[Event "Titled Tuesday Blitz January 10 Early 2023"]
[White "Karthik Rajaa"]
[Black "Mohamed Anees M"]
[WhiteFideId "25035215"]
[BlackFideId "35065815"]
[WhiteElo "2276"]
[BlackElo "2315"]
[Result "1-0"]
[Round "10"]
[TimeControl "180+2"]
[Date "2023.01.10"]
[WhiteClock "0:00:49"]
[BlackClock "0:00:43"]

1. e4 {[%clk 0:02:53]}  c5 {[%clk 0:02:59]} 2. Nf3 {[%clk 0:02:53]}  e6 {[%clk 0:02:59]} 3. c3 {[%clk 0:02:47]}  d5 {[%clk 0:02:56]} 4. exd5 {[%clk 0:02:46]}  Qxd5 {[%clk 0:02:55]} 5. Bb5+ {[%clk 0:02:46]}  Nc6 {[%clk 0:02:53]} 6. O-O {[%clk 0:02:46]}  Nf6 {[%clk 0:02:51]} 7. Na3 {[%clk 0:02:38]}  Be7 {[%clk 0:02:51]} 8. d4 {[%clk 0:02:37]}  cxd4 {[%clk 0:02:50]} 9. c4 {[%clk 0:02:30]}  Qh5 {[%clk 0:02:29]} 10. Nxd4 {[%clk 0:02:24]}  Qxd1 {[%clk 0:02:29]} 11. Rxd1 {[%clk 0:02:25]}  Bd7 {[%clk 0:02:30]} 12. Bxc6 {[%clk 0:02:18]}  Bxc6 {[%clk 0:02:30]} 13. Nxc6 {[%clk 0:02:16]}  Bxa3 {[%clk 0:02:22]} 14. Na5 {[%clk 0:02:11]}  Bb4 {[%clk 0:02:14]} 15. Nxb7 {[%clk 0:02:09]}  Rb8 {[%clk 0:02:07]} 16. Nd6+ {[%clk 0:02:05]}  Ke7 {[%clk 0:02:07]} 17. Nb5 {[%clk 0:02:03]}  a6 {[%clk 0:02:05]} 18. Nd4 {[%clk 0:02:02]}  Rhc8 {[%clk 0:02:03]} 19. b3 {[%clk 0:01:55]}  Bc3 {[%clk 0:01:59]} 20. Ba3+ {[%clk 0:01:55]}  Ke8 {[%clk 0:01:58]} 21. Rac1 {[%clk 0:01:56]}  Bxd4 {[%clk 0:01:54]} 22. Rxd4 {[%clk 0:01:57]}  a5 {[%clk 0:01:54]} 23. Bd6 {[%clk 0:01:51]}  Rb7 {[%clk 0:01:53]} 24. f3 {[%clk 0:01:44]}  Nd7 {[%clk 0:01:50]} 25. c5 {[%clk 0:01:39]}  Rc6 {[%clk 0:01:48]} 26. Ra4 {[%clk 0:01:36]}  Rb5 {[%clk 0:01:46]} 27. Rac4 {[%clk 0:01:30]}  f6 {[%clk 0:01:39]} 28. f4 {[%clk 0:01:17]}  Kf7 {[%clk 0:01:23]} 29. R1c3 {[%clk 0:01:13]}  Nb6 {[%clk 0:01:17]} 30. cxb6 {[%clk 0:01:10]}  Rxd6 {[%clk 0:01:17]} 31. Rc7+ {[%clk 0:01:10]}  Kf8 {[%clk 0:01:15]} 32. Rg3 {[%clk 0:00:56]}  g5 {[%clk 0:00:53]} 33. b7 {[%clk 0:00:51]}  Rdb6 {[%clk 0:00:49]} 34. Rd3 {[%clk 0:00:50]}  Ke8 {[%clk 0:00:47]} 35. Rdd7 {[%clk 0:00:50]}  gxf4 {[%clk 0:00:46]} 36. Rxh7 {[%clk 0:00:49]}  Kd8 {[%clk 0:00:43]} 37. Rc8# {[%clk 0:00:49]} 1-0


[Site "https://www.chess.com"]